lending/lending_fUSD_20260204
["ID","MTS","AMOUNT","RATE_DAILY","PERIOD"]
[404489462,1770209432305,-1210.22602652,0.00012223,2]
[404489463,1770209432315,-4921.53897344,0.00012223,2]
[404489464,1770209432324,-8743.32190607,0.00012223,2]
[404489465,1770209432333,-225.59502225,0.00012263,2]
[404489466,1770209432342,-151.0,0.0001227,2]
[404489467,1770209432352,-472.03848132,0.00012272,2]
[404489468,1770209432361,-359.41491161,0.00012272,2]
[404489470,1770209432371,-647.52299351,0.00012272,2]
[404489471,1770209432380,-500.0,0.00012272,2]
[404489472,1770209432389,-500.0,0.00012272,2]
[404489473,1770209432399,-500.0,0.00012272,2]
[404489474,1770209432408,-500.0,0.00012272,2]
[404489475,1770209432417,-500.0,0.00012272,2]
[404489476,1770209432427,-500.0,0.00012272,2]
[404489477,1770209432440,-500.0,0.00012272,2]
[404489478,1770209432449,-500.0,0.00012272,2]
[404489479,1770209432459,-500.0,0.00012272,2]
[404489480,1770209432468,-500.0,0.00012272,2]
[404489481,1770209432478,-500.0,0.00012272,2]
[404489482,1770209432487,-211.07776199,0.00012272,2]
[404489483,1770209432496,-500.0,0.00012272,2]
[404489484,1770209432506,-500.0,0.00012272,2]
[404489485,1770209432515,-500.0,0.00012272,2]
[404489486,1770209432525,-500.0,0.00012272,2]
[404489487,1770209432534,-500.0,0.00012272,2]
[404489488,1770209432544,-500.0,0.00012272,2]
[404489489,1770209432555,-500.0,0.00012272,2]
[404489490,1770209432565,-13045.40700899,0.00012273,2]
[404489491,1770209432582,-2461.82425065,0.00012273,2]
[404489492,1770209432594,-539.07428944,0.00012273,2]
[404489493,1770209432611,-34126.50248719,0.00012273,2]
[404489494,1770209432623,-50412.81676313,0.00012273,2]
[404489495,1770209432634,-2279.47266646,0.00012273,2]
[404489496,1770209432649,-940.0,0.00012273,2]
[404489499,1770209438295,-3570.74242685,0.00012273,2]
[404489500,1770209438307,-2941.14982718,0.00012273,2]
[404489501,1770209438319,-1188.74622491,0.00012273,2]
[404489502,1770209438351,-22797.24315463,0.00012273,2]
[404489503,1770209438362,-7769.37753702,0.00012273,2]
[404489504,1770209438408,-1349.90711029,0.00012273,2]
[404489505,1770209438419,-8778.89999999,0.00012273,2]
[404489506,1770209438431,-988.23777312,0.00012273,2]
[404489511,1770209440276,-713.75752859,0.00012273,2]
[404489512,1770209440288,-403.52931551,0.00012273,2]
[404489513,1770209440492,-816.78701816,0.00012273,2]
[404489514,1770209440504,-3344876.52461789,0.00012273,2]
[404489515,1770209440513,-500.0,0.00012296,2]
[404489516,1770209440522,-150.0,0.00012296,2]
[404489517,1770209440531,-500.0,0.00012316,2]
[404489518,1770209440541,-500.0,0.00012316,2]
[404489519,1770209440550,-510.88207769,0.00012316,2]
[404489520,1770209440559,-151.0,0.00012316,2]
[404489521,1770209440568,-151.0,0.00012316,2]
[404489522,1770209440578,-151.0,0.00012316,2]
[404489523,1770209440587,-151.0,0.00012316,2]
[404489524,1770209440595,-151.0,0.00012316,2]
[404489525,1770209440604,-151.0,0.00012316,2]
[404489526,1770209440614,-151.0,0.00012316,2]
[404489527,1770209440623,-151.0,0.00012316,2]
[404489528,1770209440632,-151.0,0.00012316,2]
[404489529,1770209440641,-151.0,0.00012316,2]
[404489530,1770209440651,-151.0,0.00012316,2]
[404489531,1770209440660,-500.0,0.00012316,2]
[404489532,1770209440669,-500.0,0.00012316,2]
[404489533,1770209440678,-500.0,0.00012316,2]
[404489534,1770209440687,-500.0,0.00012316,2]
[404489535,1770209440696,-500.0,0.00012316,2]
[404489536,1770209440705,-500.0,0.00012316,2]
[404489537,1770209440714,-500.0,0.00012316,2]
[404489538,1770209440724,-500.0,0.00012316,2]
[404489539,1770209440733,-500.0,0.00012316,2]
[404489540,1770209440742,-500.0,0.00012316,2]
[404489541,1770209440751,-202.08466483,0.00012316,2]
[404489542,1770209440760,-500.0,0.00012316,2]
[404489543,1770209440769,-200.0,0.00012316,2]
[404489544,1770209440778,-4123.0271,0.00012323,2]
[404489545,1770209440787,-500.0,0.00012351,2]
[404489546,1770209440796,-949.57907636,0.00012351,2]
[404489547,1770209440806,-247.43,0.00012359,2]
[404489548,1770209440815,-259.19,0.000124,2]
[404489549,1770209440826,-500.0,0.00012406,2]
[404489550,1770209440835,-211.868,0.00012422,2]
[404489551,1770209440847,-154.95549112,0.00012422,2]
[404489552,1770209440856,-500.0,0.0001246,2]
[404489553,1770209440865,-1089.64825227,0.00012473,2]
[404489554,1770209440874,-500.0,0.00012515,2]
[404489555,1770209440885,-156.79,0.00012565,2]
[404489556,1770209440894,-500.0,0.0001257,2]
[404489557,1770209440904,-1178.63534639,0.00012572,3]
[404489559,1770209440913,-500.0,0.0001259,2]
[404489561,1770209440923,-3530.52962341,0.00012608,2]
[404489563,1770209440933,-1000.0,0.00012623,2]
[404489564,1770209440942,-14216.56,0.00012623,2]
[404489566,1770209440950,-350.0,0.00012625,2]
[404489568,1770209441173,-4921.53897341,0.00012632,2]
[404489569,1770209441182,-500.0,0.00012685,2]
[404489570,1770209441191,-225.59502225,0.00012769,2]
[404489571,1770209441200,-416.21693956,0.00012778,2]
[404489572,1770209441209,-1098.40308869,0.00012778,2]
[404489573,1770209441218,-1937.71324632,0.00012778,2]
[404489574,1770209441228,-156.79,0.00012839,2]
[404489575,1770209441237,-500.0,0.00012864,2]
[404489576,1770209441246,-500.0,0.00012864,2]
[404489577,1770209441255,-9999.99,0.00012893,2]
[404489578,1770209441264,-25968.81,0.00012893,2]
[404489579,1770209441273,-3533.29,0.00012893,2]
[404489580,1770209441282,-3530.52962341,0.00013019,2]
[404489581,1770209441291,-4921.53897341,0.0001304,2]
[404489582,1770209441300,-197.72,0.00013105,2]
[404489583,1770209441309,-156.79,0.00013113,2]
[404489584,1770209441318,-500.0,0.00013138,2]
[404489585,1770209441327,-1210.22602651,0.00013169,2]
[404489586,1770209441336,-387.64529083,0.00013177,2]
[404489587,1770209441346,-150.0,0.00013177,2]
[404489588,1770209441355,-255.0,0.0001331,2]
[404489589,1770209441365,-420.0,0.00013385,2]
[404489590,1770209441373,-156.79,0.00013387,2]
[404489591,1770209441382,-500.0,0.00013412,2]
[404489592,1770209441392,-500.0,0.00013412,2]
[404489593,1770209441401,-1680.0,0.00013415,2]
[404489594,1770209441410,-3240.0,0.00013425,2]
[404489595,1770209441419,-3530.52962341,0.00013431,2]
[404489596,1770209441428,-154.44018454,0.00013445,2]
[404489597,1770209441438,-500.0,0.00013445,2]
[404489598,1770209441446,-150.0,0.00013445,2]
[404489599,1770209441455,-150.0,0.00013445,2]
[404489600,1770209441464,-150.0,0.00013445,2]
[404489601,1770209441474,-150.0,0.00013445,2]
[404489602,1770209441483,-150.0,0.00013445,2]
[404489603,1770209441492,-150.0,0.00013445,2]
[404489604,1770209441501,-200.0,0.00013445,2]
[404489605,1770209441510,-607.0,0.00013445,2]
[404489606,1770209441519,-150.0,0.00013445,2]
[404489607,1770209441528,-150.0,0.00013445,2]
[404489608,1770209441537,-500.0,0.00013445,2]
[404489609,1770209441546,-150.0,0.00013445,2]
[404489610,1770209441555,-150.0,0.00013445,2]
[404489611,1770209441565,-150.0,0.00013445,2]
[404489612,1770209441574,-500.0,0.00013445,2]
[404489613,1770209441583,-500.0,0.00013445,2]
[404489614,1770209441592,-2361.0,0.00013445,2]
[404489615,1770209441601,-235.78641937,0.00013445,2]
[404489616,1770209441611,-150.0,0.00013445,2]
[404489617,1770209441620,-150.0,0.00013445,2]
[404489618,1770209441629,-150.0,0.00013445,2]
[404489619,1770209441638,-150.0,0.00013445,2]
[404489620,1770209441647,-150.0,0.00013445,2]
[404489621,1770209441656,-150.0,0.00013445,2]
[404489622,1770209441665,-150.0,0.00013445,2]
[404489623,1770209441674,-4921.53897341,0.00013449,2]
[404489624,1770209441684,-500.0,0.000135,2]
[404489625,1770209441693,-150.0,0.000135,2]
[404489626,1770209441702,-150.0,0.000135,2]
[404489627,1770209441712,-150.0,0.000135,2]
[404489628,1770209441721,-150.0,0.000135,2]
[404489629,1770209441730,-607.0,0.000135,2]
[404489630,1770209441739,-150.0,0.000135,2]
[404489631,1770209441748,-150.0,0.000135,2]
[404489632,1770209441758,-500.0,0.000135,2]
[404489633,1770209441767,-150.0,0.000135,2]
[404489634,1770209441776,-500.0,0.000135,2]
[404489635,1770209441785,-500.0,0.000135,2]
[404489636,1770209441795,-2361.0,0.000135,2]
[404489637,1770209441804,-150.0,0.000135,2]
[404489638,1770209441813,-150.0,0.000135,2]
[404489639,1770209441822,-150.0,0.000135,2]
[404489640,1770209441831,-361.68385218,0.00013555,2]
[404489641,1770209441841,-200.0,0.00013555,2]
[404489642,1770209441854,-183.0,0.00013555,2]
[404489643,1770209441864,-200.0,0.00013555,2]
[404489644,1770209441872,-170.0,0.00013555,2]
[404489645,1770209441883,-607.0,0.00013555,2]
[404489646,1770209441892,-200.0,0.00013555,2]
[404489647,1770209441902,-418.0,0.00013555,2]
[404489648,1770209441911,-200.0,0.00013555,2]
[404489649,1770209441923,-200.0,0.00013555,2]
[404489650,1770209441934,-179.4054645,0.00013555,2]
[404489651,1770209441943,-482.0,0.00013555,2]
[404489652,1770209441952,-2361.0,0.00013555,2]
[404489653,1770209441961,-200.0,0.00013555,2]
[404489654,1770209441971,-200.0,0.00013555,2]
[404489655,1770209441980,-200.0,0.00013555,2]
[404489656,1770209441989,-607.0,0.00013609,2]
[404489657,1770209441999,-2361.0,0.00013609,2]
[404489658,1770209442008,-156.79,0.00013661,2]
[404489659,1770209442017,-607.0,0.00013664,2]
[404489660,1770209442026,-2361.0,0.00013664,2]
[404489661,1770209442035,-250.0,0.00013667,2]
[404489662,1770209442046,-200.0,0.00013698,2]
[404489663,1770209442056,-500.0,0.00013698,2]
[404489664,1770209442067,-500.0,0.00013698,2]
[404489665,1770209442076,-500.0,0.00013698,2]
[404489666,1770209442085,-500.0,0.00013698,2]
[404489667,1770209442094,-500.0,0.00013698,2]
[404489668,1770209442103,-500.0,0.00013698,2]
[404489669,1770209442113,-500.0,0.00013698,2]
[404489670,1770209442123,-500.0,0.00013698,2]
[404489671,1770209442132,-500.0,0.00013698,2]
[404489672,1770209442142,-500.0,0.00013698,2]
[404489673,1770209442151,-500.0,0.00013698,2]
[404489674,1770209442161,-440.71331591,0.00013698,2]
[404489675,1770209442170,-500.0,0.00013698,2]
[404489676,1770209442180,-500.0,0.00013698,2]
[404489677,1770209442189,-500.0,0.00013698,2]
[404489678,1770209442199,-500.0,0.00013698,2]
[404489679,1770209442209,-500.0,0.00013698,2]
[404489680,1770209442218,-500.0,0.00013698,2]
[404489681,1770209442228,-500.0,0.00013698,2]
[404489682,1770209442237,-500.0,0.00013698,2]
[404489683,1770209442246,-500.0,0.00013698,2]
[404489684,1770209442256,-500.0,0.00013698,2]
[404489685,1770209442265,-500.0,0.00013698,2]
[404489686,1770209442275,-500.0,0.00013698,2]
[404489687,1770209442284,-500.0,0.00013698,2]
[404489688,1770209442293,-344.36366875,0.00013698,2]
[404489689,1770209442302,-200.0,0.00013698,2]
[404489690,1770209442311,-83899.1962423,0.00013698,2]
[404489691,1770209442320,-500.0,0.00013698,2]
[404489692,1770209442330,-500.0,0.00013698,2]
[404489693,1770209442339,-272.1278825,0.00013698,2]
[404489694,1770209442348,-500.0,0.00013698,2]
[404489695,1770209442357,-500.0,0.00013698,2]
[404489696,1770209442366,-500.0,0.00013698,2]
[404489697,1770209442376,-500.0,0.00013698,2]
[404489698,1770209442385,-500.0,0.00013698,2]
[404489699,1770209442394,-500.0,0.00013698,2]
[404489700,1770209442403,-500.0,0.00013698,2]
[404489701,1770209442412,-341.82277216,0.00013698,2]
[404489702,1770209442421,-500.0,0.00013698,2]
[404489703,1770209442430,-500.0,0.00013698,2]
[404489704,1770209442439,-500.0,0.00013698,2]
[404489705,1770209442447,-500.0,0.00013698,2]
[404489706,1770209442457,-500.0,0.00013698,2]
[404489707,1770209442466,-500.0,0.00013698,2]
[404489708,1770209442475,-623.75445386,0.00013698,2]
[404489709,1770209442484,-647.4,0.00013698,2]
[404489710,1770209442493,-647.4,0.00013698,2]
[404489711,1770209442502,-647.4,0.00013698,2]
[404489712,1770209442511,-647.4,0.00013698,2]
[404489713,1770209442520,-647.4,0.00013698,2]
[404489714,1770209442529,-647.4,0.00013698,2]
[404489715,1770209442538,-647.4,0.00013698,2]
[404489716,1770209442547,-647.4,0.00013698,2]
[404489717,1770209442557,-647.4,0.00013698,2]
[404489718,1770209442566,-647.4,0.00013698,2]
[404489719,1770209442575,-647.4,0.00013698,2]
[404489720,1770209442584,-647.4,0.00013698,2]
[404489721,1770209442593,-647.4,0.00013698,2]
[404489722,1770209442602,-647.4,0.00013698,2]
[404489723,1770209442611,-647.4,0.00013698,2]
[404489724,1770209442620,-500.0,0.00013698,2]
[404489725,1770209442629,-500.0,0.00013698,2]
[404489726,1770209442638,-500.0,0.00013698,2]
[404489727,1770209442647,-500.0,0.00013698,2]
[404489728,1770209442656,-245.91228722,0.00013698,2]
[404489729,1770209442667,-500.0,0.00013698,2]
[404489730,1770209442678,-500.0,0.00013698,2]
[404489731,1770209442687,-500.0,0.00013698,2]
[404489732,1770209442697,-500.0,0.00013698,2]
[404489733,1770209442706,-500.0,0.00013698,2]
[404489734,1770209442724,-500.0,0.00013698,2]
[404489735,1770209442738,-500.0,0.00013698,2]
[404489736,1770209442750,-500.0,0.00013698,2]
[404489737,1770209442764,-500.0,0.00013698,2]
[404489738,1770209442779,-500.0,0.00013698,2]
[404489739,1770209442796,-500.0,0.00013698,2]
[404489740,1770209442811,-500.0,0.00013698,2]
[404489741,1770209442825,-500.0,0.00013698,2]
[404489742,1770209442839,-500.0,0.00013698,2]
[404489743,1770209442854,-500.0,0.00013698,2]
[404489744,1770209442864,-500.0,0.00013698,2]
[404489745,1770209442877,-500.0,0.00013698,2]
[404489746,1770209442891,-500.0,0.00013698,2]
[404489747,1770209442904,-500.0,0.00013698,2]
[404489748,1770209442918,-500.0,0.00013698,2]
[404489749,1770209442932,-500.0,0.00013698,2]
[404489750,1770209442948,-500.0,0.00013698,2]
[404489751,1770209442960,-500.0,0.00013698,2]
[404489752,1770209442972,-500.0,0.00013698,2]
[404489753,1770209442988,-500.0,0.00013698,2]
[404489754,1770209443000,-500.0,0.00013698,2]
[404489755,1770209443014,-500.0,0.00013698,2]
[404489756,1770209443028,-500.0,0.00013698,2]
[404489757,1770209443040,-500.0,0.00013698,2]
[404489758,1770209443053,-500.0,0.00013698,2]
[404489759,1770209443068,-600.86,0.00013698,2]
[404489760,1770209443080,-3002.9386789,0.00013698,2]
[404489761,1770209443094,-22897.5361132,0.00013698,2]
[404489762,1770209443107,-500.0,0.00013698,2]
[404489763,1770209443117,-500.0,0.00013698,2]
[404489764,1770209443130,-500.0,0.00013698,2]
[404489765,1770209443145,-500.0,0.00013698,2]
[404489766,1770209443159,-500.0,0.00013698,2]
[404489767,1770209443169,-500.0,0.00013698,2]
[404489768,1770209443179,-500.0,0.00013698,2]
[404489769,1770209443190,-500.0,0.00013698,2]
[404489770,1770209443203,-500.0,0.00013698,2]
[404489771,1770209443216,-508.28,0.00013698,2]
[404489772,1770209443227,-500.0,0.00013698,2]
[404489773,1770209443240,-500.0,0.00013698,2]
[404489774,1770209443251,-500.0,0.00013698,2]
[404489775,1770209443264,-500.0,0.00013698,2]
[404489776,1770209443275,-500.0,0.00013698,2]
[404489777,1770209443286,-500.0,0.00013698,2]
[404489778,1770209443298,-500.0,0.00013698,2]
[404489779,1770209443310,-500.0,0.00013698,2]
[404489780,1770209443322,-500.0,0.00013698,2]
[404489781,1770209443336,-500.0,0.00013698,2]
[404489782,1770209443347,-500.0,0.00013698,2]
[404489783,1770209443359,-500.0,0.00013698,2]
[404489784,1770209443371,-500.0,0.00013698,2]
[404489785,1770209443384,-248.79623194,0.00013698,2]
[404489786,1770209443395,-500.0,0.00013698,2]
[404489787,1770209443407,-500.0,0.00013698,2]
[404489788,1770209443419,-500.0,0.00013698,2]
[404489789,1770209443432,-500.0,0.00013698,2]
[404489790,1770209443447,-500.0,0.00013698,2]
[404489791,1770209443460,-500.0,0.00013698,2]
[404489792,1770209443472,-500.0,0.00013698,2]
[404489793,1770209443483,-500.0,0.00013698,2]
[404489794,1770209443495,-500.0,0.00013698,2]
[404489795,1770209443506,-500.0,0.00013698,2]
[404489796,1770209443518,-500.0,0.00013698,2]
[404489797,1770209443530,-500.0,0.00013698,2]
[404489798,1770209443542,-500.0,0.00013698,2]
[404489799,1770209443555,-201.21918147,0.00013698,2]
[404489800,1770209443567,-503.3149344,0.00013698,2]
[404489801,1770209443578,-500.0,0.00013698,2]
[404489802,1770209443592,-500.0,0.00013698,2]
[404489803,1770209443603,-500.0,0.00013698,2]
[404489804,1770209443615,-500.0,0.00013698,2]
[404489805,1770209443626,-500.0,0.00013698,2]
[404489806,1770209443638,-500.0,0.00013698,2]
[404489807,1770209443652,-500.0,0.00013698,2]
[404489808,1770209443663,-500.0,0.00013698,2]
[404489809,1770209443675,-500.0,0.00013698,2]
[404489810,1770209443687,-500.0,0.00013698,2]
[404489811,1770209443700,-500.0,0.00013698,2]
[404489812,1770209443713,-500.0,0.00013698,2]
[404489813,1770209443725,-500.0,0.00013698,2]
[404489814,1770209443737,-500.0,0.00013698,2]
[404489815,1770209443748,-516.54058196,0.00013698,2]
[404489816,1770209443760,-500.0,0.00013698,2]
[404489817,1770209443772,-500.0,0.00013698,2]
[404489818,1770209443783,-500.0,0.00013698,2]
[404489819,1770209443795,-500.0,0.00013698,2]
[404489820,1770209443807,-508.97591607,0.00013698,2]
[404489821,1770209443818,-500.0,0.00013698,2]
[404489822,1770209443830,-154.56738754,0.00013698,2]
[404489823,1770209443842,-500.0,0.00013698,2]
[404489824,1770209443856,-500.0,0.00013698,2]
[404489825,1770209443868,-500.0,0.00013698,2]
[404489826,1770209443880,-500.0,0.00013698,2]
[404489827,1770209443892,-500.0,0.00013698,2]
[404489828,1770209443903,-500.0,0.00013698,2]
[404489829,1770209443916,-500.0,0.00013698,2]
[404489830,1770209443928,-500.0,0.00013698,2]
[404489831,1770209443940,-500.0,0.00013698,2]
[404489832,1770209443953,-500.0,0.00013698,2]
[404489834,1770209443966,-500.0,0.00013698,2]
[404489836,1770209443979,-500.0,0.00013698,2]
[404489838,1770209443992,-500.0,0.00013698,2]
[404489840,1770209444004,-500.0,0.00013698,2]
[404489842,1770209444017,-500.0,0.00013698,2]
[404489844,1770209444029,-500.0,0.00013698,2]
[404489846,1770209444040,-500.0,0.00013698,2]
[404489848,1770209444052,-500.0,0.00013698,2]
[404489850,1770209444064,-500.0,0.00013698,2]
[404489852,1770209444078,-500.0,0.00013698,2]
[404489853,1770209444090,-500.0,0.00013698,2]
[404489854,1770209444102,-500.0,0.00013698,2]
[404489855,1770209444114,-500.0,0.00013698,2]
[404489856,1770209444126,-500.0,0.00013698,2]
[404489857,1770209444138,-500.0,0.00013698,2]
[404489858,1770209444150,-500.0,0.00013698,2]
[404489859,1770209444162,-200.0,0.00013698,2]
[404489861,1770209444174,-500.0,0.00013698,2]
[404489863,1770209444187,-500.0,0.00013698,2]
[404489865,1770209444198,-500.0,0.00013698,2]
[404489868,1770209444210,-500.0,0.00013698,2]
[404489870,1770209444221,-500.0,0.00013698,2]
[404489872,1770209444233,-500.0,0.00013698,2]
[404489874,1770209444245,-500.0,0.00013698,2]
[404489876,1770209444257,-500.0,0.00013698,2]
[404489877,1770209444269,-500.0,0.00013698,2]
[404489878,1770209444281,-500.0,0.00013698,2]
[404489879,1770209444292,-500.0,0.00013698,2]
[404489880,1770209444304,-500.0,0.00013698,2]
[404489881,1770209444315,-500.0,0.00013698,2]
[404489882,1770209444327,-500.0,0.00013698,2]
[404489883,1770209444339,-403.2474264,0.00013698,2]
[404489884,1770209444350,-500.0,0.00013698,2]
[404489885,1770209444362,-234.378992,0.00013698,2]
[404489886,1770209444374,-500.0,0.00013698,2]
[404489887,1770209444386,-500.0,0.00013698,2]
[404489888,1770209444397,-500.0,0.00013698,2]
[404489889,1770209444409,-500.0,0.00013698,2]
[404489890,1770209444421,-500.0,0.00013698,2]
[404489891,1770209444433,-513.21673603,0.00013698,2]
[404489892,1770209444444,-12291.25,0.00013699,2]
[404489893,1770209444456,-13453.2,0.00013699,2]
[404489894,1770209444467,-500.0,0.00013699,2]
[404489895,1770209444479,-773.56,0.00013699,2]
[404489896,1770209444490,-607.0,0.00013719,2]
[404489897,1770209444502,-2361.0,0.00013719,2]
[404489898,1770209444514,-949.57907636,0.00013738,2]
[404489899,1770209444526,-607.0,0.00013774,2]
[404489900,1770209444537,-2361.0,0.00013774,2]
[404489901,1770209444549,-2898.70312948,0.00013778,2]
[404489902,1770209444562,-8743.32190607,0.0001379,2]
[404489903,1770209444574,-607.0,0.00013829,2]
[404489904,1770209444586,-2361.0,0.00013829,2]
[404489905,1770209444599,-200.0,0.00013835,2]
[404489906,1770209444613,-200.0,0.00013835,2]
[404489907,1770209444625,-3530.52962341,0.00013842,2]
[404489908,1770209444634,-4921.53897341,0.00013857,2]
[404489909,1770209444644,-607.0,0.00013883,2]
[404489910,1770209444654,-2361.0,0.00013883,2]
[404489911,1770209444664,-156.79,0.00013935,2]
[404489912,1770209444674,-607.0,0.00013938,2]
[404489913,1770209444684,-2361.0,0.00013938,2]
[404489914,1770209444693,-500.0,0.0001396,2]
[404489915,1770209444979,-200.0,0.00013973,2]
[404489916,1770209445009,-200.0,0.00013973,2]
[404489917,1770209445027,-773.56,0.00013973,2]
[404489918,1770209445037,-607.0,0.00013993,2]
[404489919,1770209445046,-2361.0,0.00013993,2]
[404489920,1770209445055,-166.66,0.00014035,2]
[404489921,1770209445065,-607.0,0.00014048,2]
[404489922,1770209445074,-2361.0,0.00014048,2]
[404489923,1770209445084,-607.0,0.00014103,2]
[404489924,1770209445093,-2361.0,0.00014103,2]
[404489925,1770209445103,-200.0,0.00014113,2]
[404489926,1770209445114,-200.0,0.00014113,2]
[404489927,1770209445123,-1210.22602651,0.00014115,2]
[404489928,1770209445132,-607.0,0.00014157,2]
[404489929,1770209445142,-2361.0,0.00014157,2]
[404489930,1770209445151,-156.79,0.00014209,2]
[404489931,1770209445161,-607.0,0.00014212,2]
[404489932,1770209445169,-2361.0,0.00014212,2]
[404489933,1770209445179,-250.0,0.00014247,5]
[404489934,1770209445188,-250.0,0.00014247,5]
[404489935,1770209445197,-250.0,0.00014247,5]
[404489936,1770209445206,-250.0,0.00014247,5]
[404489937,1770209445216,-250.0,0.00014247,5]
[404489938,1770209445225,-250.0,0.00014247,5]
[404489939,1770209445234,-250.0,0.00014247,5]
[404489940,1770209445243,-250.0,0.00014247,5]
[404489941,1770209445252,-250.0,0.00014247,5]
[404489942,1770209445263,-250.0,0.00014247,5]
[404489943,1770209445273,-250.0,0.00014247,5]
[404489944,1770209445282,-250.0,0.00014247,5]
[404489945,1770209445291,-250.0,0.00014247,5]
[404489946,1770209445300,-185.602916,0.00014247,5]
[404489947,1770209445310,-775.21,0.00014247,2]
[404489948,1770209445320,-3530.52962341,0.00014254,2]
[404489949,1770209445331,-200.0,0.00014254,2]
[404489950,1770209445340,-4921.53897341,0.00014266,2]
[404489951,1770209445349,-607.0,0.00014267,2]
[404489952,1770209445359,-2361.0,0.00014267,2]
[404489953,1770209445370,-3922.0434,0.00014278,2]
[404489954,1770209445379,-607.0,0.00014322,2]
[404489955,1770209445388,-2361.0,0.00014322,2]
[404489956,1770209445397,-607.0,0.00014377,2]
[404489957,1770209445406,-2361.0,0.00014377,2]
[404489958,1770209445416,-607.0,0.00014431,2]
[404489959,1770209445425,-2361.0,0.00014431,2]
[404489960,1770209445434,-166.66,0.00014457,2]
[404489961,1770209445443,-156.79,0.00014483,2]
[404489962,1770209445453,-607.0,0.00014486,2]
[404489963,1770209445462,-2361.0,0.00014486,2]
[404489964,1770209445473,-433.0,0.00014495,2]
[404489965,1770209445484,-607.0,0.00014541,2]
[404489966,1770209445494,-2361.0,0.00014541,2]
[404489967,1770209445505,-607.0,0.00014596,2]
[404489968,1770209445515,-2361.0,0.00014596,2]
[404489969,1770209445525,-647.4,0.00014599,2]
[404489970,1770209445535,-500.0,0.000146,2]
[404489971,1770209445546,-500.0,0.000146,2]
[404489972,1770209445558,-438.12120673,0.000146,2]
[404489973,1770209445568,-500.0,0.000146,2]
[404489974,1770209445577,-501.46275829,0.000146,2]
[404489975,1770209445587,-500.0,0.000146,2]
[404489976,1770209445596,-568.24850317,0.000146,2]
[404489977,1770209445606,-500.0,0.000146,2]
[404489978,1770209445617,-500.43942892,0.000146,2]
[404489979,1770209445627,-500.0,0.000146,2]
[404489980,1770209445636,-500.0,0.000146,2]
[404489981,1770209445645,-500.0,0.000146,2]
[404489982,1770209445654,-422.32864224,0.000146,2]
[404489983,1770209445663,-500.0,0.000146,2]
[404489984,1770209445672,-500.0,0.000146,2]
[404489985,1770209445682,-500.0,0.000146,2]
[404489986,1770209445692,-500.0,0.000146,2]
[404489987,1770209445701,-500.0,0.000146,2]
[404489988,1770209445710,-500.0,0.000146,2]
[404489989,1770209445720,-500.0,0.000146,2]
[404489990,1770209445729,-500.35948587,0.000146,2]
[404489991,1770209445738,-500.0,0.000146,2]
[404489992,1770209445747,-207.06822891,0.000146,2]